fUST/lending_fUST_20250608
["ID","MTS","AMOUNT","RATE_DAILY","PERIOD"]
[364985504,1749383442631,-440.0,0.00019726,2]
[364985505,1749383442641,-440.0,0.00019726,2]
[364985506,1749383442651,-440.0,0.00019726,2]
[364985507,1749383442662,-440.0,0.00019726,2]
[364985508,1749383442672,-440.0,0.00019726,2]
[364985509,1749383442682,-440.0,0.00019726,2]
[364985510,1749383442692,-440.0,0.00019726,2]
[364985511,1749383442703,-440.0,0.00019726,2]
[364985512,1749383442714,-440.0,0.00019726,2]
[364985513,1749383442724,-187.53904802,0.00019726,2]
[364985514,1749383442734,-440.0,0.00019726,2]
[364985515,1749383442745,-440.0,0.00019726,2]
[364985516,1749383442759,-440.0,0.00019726,2]
[364985517,1749383442768,-424.77963585,0.00019726,2]
[364985518,1749383442778,-440.0,0.00019726,2]
[364985519,1749383442788,-440.0,0.00019726,2]
[364985520,1749383442799,-440.0,0.00019726,2]
[364985521,1749383442808,-440.0,0.00019726,2]
[364985522,1749383442818,-440.0,0.00019726,2]
[364985523,1749383442829,-440.0,0.00019726,2]
[364985524,1749383442839,-440.0,0.00019726,2]
[364985525,1749383442849,-440.0,0.00019726,2]
[364985526,1749383442860,-440.0,0.00019726,2]
[364985527,1749383442869,-413.2365632,0.00019726,2]
[364985528,1749383442879,-558.97098639,0.00019726,2]
[364985529,1749383442889,-440.0,0.00019726,2]
[364985530,1749383442899,-440.0,0.00019726,2]
[364985532,1749383442908,-440.0,0.00019726,2]
[364985534,1749383442918,-440.0,0.00019726,2]
[364985535,1749383442927,-440.0,0.00019726,2]
[364985536,1749383442937,-440.0,0.00019726,2]
[364985537,1749383442947,-440.0,0.00019726,2]
[364985538,1749383442956,-440.0,0.00019726,2]
[364985539,1749383442966,-350.0,0.00019726,2]
[364985540,1749383442975,-440.0,0.00019726,2]
[364985541,1749383442985,-440.0,0.00019726,2]
[364985542,1749383442995,-440.0,0.00019726,2]
[364985543,1749383443005,-440.0,0.00019726,2]
[364985545,1749383443016,-440.0,0.00019726,2]
[364985547,1749383443025,-440.0,0.00019726,2]
[364985548,1749383443035,-440.0,0.00019726,2]
[364985549,1749383443045,-440.0,0.00019726,2]
[364985550,1749383443055,-440.0,0.00019726,2]
[364985551,1749383443064,-440.0,0.00019726,2]
[364985552,1749383443074,-543.8,0.00019726,2]
[364985553,1749383443084,-523.97,0.00019726,2]
[364985554,1749383443093,-440.0,0.00019726,2]
[364985555,1749383443103,-440.0,0.00019726,2]
[364985556,1749383443113,-440.0,0.00019726,2]
[364985557,1749383443123,-440.0,0.00019726,2]
[364985558,1749383443132,-711.05,0.00019726,2]
[364985559,1749383443143,-440.0,0.00019726,2]
[364985560,1749383443153,-440.0,0.00019726,2]
[364985561,1749383443163,-440.0,0.00019726,2]
[364985562,1749383443172,-440.0,0.00019726,2]
[364985563,1749383443182,-440.0,0.00019726,2]
[364985564,1749383443191,-440.0,0.00019726,2]
[364985565,1749383443201,-440.0,0.00019726,2]
[364985566,1749383443212,-440.0,0.00019726,2]
[364985568,1749383443221,-440.0,0.00019726,2]
[364985570,1749383443231,-440.0,0.00019726,2]
[364985572,1749383443240,-440.0,0.00019726,2]
[364985574,1749383443250,-440.0,0.00019726,2]
[364985576,1749383443259,-440.0,0.00019726,2]
[364985578,1749383443269,-440.0,0.00019726,2]
[364985580,1749383443279,-501.39,0.00019726,2]
[364985582,1749383443288,-440.0,0.00019726,2]
[364985583,1749383443298,-440.0,0.00019726,2]
[364985585,1749383443307,-440.0,0.00019726,2]
[364985587,1749383443316,-440.0,0.00019726,2]
[364985589,1749383443326,-440.0,0.00019726,2]
[364985591,1749383443335,-440.0,0.00019726,2]
[364985593,1749383443345,-440.0,0.00019726,2]
[364985595,1749383443354,-440.0,0.00019726,2]
[364985597,1749383443364,-440.0,0.00019726,2]
[364985599,1749383443373,-440.0,0.00019726,2]
[364985600,1749383443383,-440.0,0.00019726,2]
[364985602,1749383443392,-519.6,0.00019726,2]
[364985604,1749383443402,-382.86326105,0.00019726,2]
[364985605,1749383443411,-440.0,0.00019726,2]
[364985606,1749383443421,-440.0,0.00019726,2]
[364985607,1749383443430,-440.0,0.00019726,2]
[364985608,1749383443440,-440.0,0.00019726,2]
[364985609,1749383443449,-440.0,0.00019726,2]
[364985610,1749383443459,-440.0,0.00019726,2]
[364985611,1749383443468,-440.0,0.00019726,2]
[364985612,1749383443478,-638.78,0.00019726,2]
[364985613,1749383443487,-440.0,0.00019726,2]
[364985614,1749383443496,-440.0,0.00019726,2]
[364985615,1749383443505,-564.51,0.00019726,2]
[364985616,1749383443515,-440.0,0.00019726,2]
[364985617,1749383443524,-440.0,0.00019726,2]
[364985618,1749383443533,-440.0,0.00019726,2]
[364985619,1749383443542,-268.4,0.00019726,2]
[364985620,1749383443551,-330.0,0.00019726,2]
[364985621,1749383443561,-440.0,0.00019726,2]
[364985622,1749383443570,-440.0,0.00019726,2]
[364985623,1749383443579,-440.0,0.00019726,2]
[364985624,1749383443588,-440.0,0.00019726,2]
[364985625,1749383443597,-240.0,0.00019757,2]
[364985626,1749383443606,-420.0,0.00019757,2]
[364985627,1749383443616,-189.40197304,0.00019848,2]
[364985628,1749383443626,-168.6,0.00019849,2]
[364985629,1749383443635,-168.6,0.00019849,2]
[364985630,1749383443645,-168.6,0.00019849,2]
[364985631,1749383443654,-168.6,0.00019849,2]
[364985632,1749383443664,-168.6,0.00019849,2]
[364985633,1749383443673,-440.0,0.0002,2]
[364985634,1749383443682,-440.0,0.0002,2]
[364985635,1749383443692,-440.0,0.0002,2]
[364985636,1749383443702,-440.0,0.0002,2]
[364985637,1749383443712,-212.19,0.0002,2]
[364985638,1749383443723,-270.0,0.0002,2]
[364985639,1749383443733,-440.0,0.0002,2]
[364985640,1749383443742,-440.0,0.0002,2]
[364985641,1749383443752,-440.0,0.0002,2]
[364985642,1749383443761,-367.08,0.0002,2]
[364985643,1749383443771,-440.0,0.0002,2]
[364985644,1749383443780,-440.0,0.0002,2]
[364985645,1749383443790,-711.05,0.0002,2]
[364985646,1749383443799,-440.0,0.0002,2]
[364985647,1749383443809,-440.0,0.0002,2]
[364985648,1749383443818,-501.56,0.0002,2]
[364985649,1749383443828,-440.0,0.0002,2]
[364985650,1749383443837,-440.0,0.0002,2]
[364985651,1749383443847,-440.0,0.0002,2]
[364985652,1749383443857,-440.0,0.0002,2]
[364985653,1749383443867,-501.39,0.0002,2]
[364985654,1749383443877,-440.0,0.0002,2]
[364985655,1749383443886,-266.25,0.0002,2]
[364985656,1749383443896,-476.67,0.0002,2]
[364985657,1749383443906,-435.54,0.0002,2]
[364985658,1749383443916,-440.0,0.0002,2]
[364985659,1749383443925,-440.0,0.0002,2]
[364985660,1749383443935,-519.6,0.0002,2]
[364985661,1749383443945,-440.0,0.0002,2]
[364985662,1749383443954,-449.34,0.0002,2]
[364985663,1749383443964,-638.78,0.0002,2]
[364985664,1749383443974,-440.0,0.0002,2]
[364985665,1749383443983,-564.51,0.0002,2]
[364985666,1749383443993,-167.38,0.0002,2]
[364985667,1749383444003,-440.0,0.0002,2]
[364985668,1749383444012,-440.0,0.0002,2]
[364985669,1749383444023,-440.0,0.0002,2]
[364985670,1749383444032,-440.0,0.0002,2]
[364985671,1749383444043,-440.0,0.0002,2]
[364985672,1749383444052,-227.06789517,0.00020064,2]
[364985673,1749383444062,-166.915555,0.00020187,2]
[364985674,1749383444071,-229.60437222,0.00020273,2]
[364985675,1749383444081,-404.59,0.00020273,2]
[364985676,1749383444091,-440.0,0.00020273,2]
[364985677,1749383444100,-496.87,0.00020273,2]
[364985678,1749383444109,-440.0,0.00020273,2]
[364985679,1749383444119,-440.0,0.00020273,2]
[364985680,1749383444128,-440.0,0.00020273,2]
[364985681,1749383444137,-440.0,0.00020273,2]
[364985682,1749383444149,-440.0,0.00020273,2]
[364985683,1749383444158,-440.0,0.00020273,2]
[364985684,1749383444168,-711.05,0.00020273,2]
[364985685,1749383444178,-440.0,0.00020273,2]
[364985686,1749383444188,-355.7,0.00020273,2]
[364985687,1749383444197,-440.0,0.00020273,2]
[364985688,1749383444207,-440.0,0.00020273,2]
[364985689,1749383444216,-159.3,0.00020273,2]
[364985690,1749383444226,-440.0,0.00020273,2]
[364985691,1749383444236,-501.39,0.00020273,2]
[364985692,1749383444246,-440.0,0.00020273,2]
[364985693,1749383444256,-440.0,0.00020273,2]
[364985694,1749383444265,-440.0,0.00020273,2]
[364985695,1749383444274,-519.6,0.00020273,2]
[364985697,1749383444283,-440.0,0.00020273,2]
[364985698,1749383444292,-638.78,0.00020273,2]
[364985699,1749383444302,-469.22,0.00020273,2]
[364985700,1749383444313,-564.51,0.00020273,2]
[364985701,1749383444322,-440.0,0.00020273,2]
[364985702,1749383444331,-440.0,0.00020273,2]
[364985703,1749383444341,-345.07,0.00020273,2]
[364985704,1749383444350,-235.6,0.00020273,2]
[364985705,1749383444360,-160.0,0.00020276,2]
[364985706,1749383444369,-423.98131849,0.00020278,2]
[364985707,1749383444379,-213.05153702,0.00020278,2]
[364985708,1749383444389,-261.0612059,0.00020377,2]
[364985709,1749383444398,-440.0,0.00020547,2]
[364985710,1749383444407,-440.0,0.00020547,2]
[364985711,1749383444417,-392.27,0.00020547,2]
[364985712,1749383444426,-440.0,0.00020547,2]
[364985713,1749383444436,-440.0,0.00020547,2]
[364985714,1749383444445,-440.0,0.00020547,2]
[364985715,1749383444454,-440.0,0.00020547,2]
[364985716,1749383444464,-711.05,0.00020547,2]
[364985717,1749383444473,-440.0,0.00020547,2]
[364985718,1749383444483,-440.0,0.00020547,2]
[364985719,1749383444492,-216.83,0.00020547,2]
[364985720,1749383444502,-440.0,0.00020547,2]
[364985721,1749383444512,-501.39,0.00020547,2]
[364985722,1749383444521,-440.0,0.00020547,2]
[364985723,1749383444531,-440.0,0.00020547,2]
[364985724,1749383444540,-440.0,0.00020547,2]
[364985725,1749383444550,-519.6,0.00020547,2]
[364985726,1749383444560,-440.0,0.00020547,2]
[364985727,1749383444570,-638.78,0.00020547,2]
[364985728,1749383444579,-564.51,0.00020547,2]
[364985729,1749383444589,-500.0,0.00020547,2]
[364985730,1749383444599,-440.0,0.00020547,2]
[364985731,1749383444609,-445.25,0.00020547,2]
[364985732,1749383444618,-638.21,0.000206,2]
[364985733,1749383444628,-175.7,0.000206,2]
[364985734,1749383444637,-175.7,0.000206,2]
[364985735,1749383444647,-175.7,0.000206,2]
[364985736,1749383444657,-175.7,0.000206,2]
[364985737,1749383444666,-175.7,0.000206,2]
[364985738,1749383444676,-175.7,0.000206,2]
[364985739,1749383444686,-189.40197304,0.0002062,2]
[364985740,1749383444695,-227.06789517,0.00020776,2]
[364985741,1749383444705,-440.0,0.00020821,2]
[364985742,1749383444715,-440.0,0.00020821,2]
[364985743,1749383444727,-440.0,0.00020821,2]
[364985744,1749383444737,-440.0,0.00020821,2]
[364985745,1749383444749,-440.0,0.00020821,2]
[364985746,1749383444864,-440.0,0.00020821,2]
[364985747,1749383444875,-711.05,0.00020821,2]
[364985748,1749383444884,-440.0,0.00020821,2]
[364985749,1749383444894,-440.0,0.00020821,2]
[364985750,1749383444904,-440.0,0.00020821,2]
[364985751,1749383444914,-501.39,0.00020821,2]
[364985752,1749383444924,-440.0,0.00020821,2]
[364985753,1749383444933,-440.0,0.00020821,2]
[364985754,1749383444943,-440.0,0.00020821,2]
[364985755,1749383444953,-519.6,0.00020821,2]
[364985756,1749383444963,-440.0,0.00020821,2]
[364985757,1749383444972,-638.78,0.00020821,2]
[364985758,1749383444982,-564.51,0.00020821,2]
[364985759,1749383444991,-440.0,0.00020821,2]
[364985760,1749383445001,-1200.0,0.00020882,2]
[364985761,1749383445011,-160.0,0.00021094,2]
[364985762,1749383445020,-500.0,0.00021094,2]
[364985763,1749383445030,-440.0,0.00021095,2]
[364985764,1749383445040,-440.0,0.00021095,2]
[364985765,1749383445050,-440.0,0.00021095,2]
[364985766,1749383445059,-440.0,0.00021095,2]
[364985767,1749383445068,-440.0,0.00021095,2]
[364985768,1749383445078,-440.0,0.00021095,2]
[364985769,1749383445088,-711.05,0.00021095,2]
[364985770,1749383445097,-440.0,0.00021095,2]
[364985771,1749383445106,-440.0,0.00021095,2]
[364985772,1749383445116,-440.0,0.00021095,2]
[364985773,1749383445125,-501.39,0.00021095,2]
[364985774,1749383445135,-440.0,0.00021095,2]
[364985775,1749383445144,-440.0,0.00021095,2]
[364985776,1749383445153,-440.0,0.00021095,2]
[364985777,1749383445163,-519.6,0.00021095,2]
[364985778,1749383445173,-440.0,0.00021095,2]
[364985779,1749383445182,-638.78,0.00021095,2]
[364985780,1749383445192,-564.51,0.00021095,2]
[364985781,1749383445201,-551.87,0.00021095,3]
[364985782,1749383445211,-584.5,0.00021095,2]
[364985783,1749383445220,-159.0892385,0.00021288,2]
[364985784,1749383445229,-190.4296726,0.00021288,2]
[364985785,1749383445239,-440.0,0.00021369,2]
[364985786,1749383445249,-440.0,0.00021369,2]
[364985787,1749383445259,-440.0,0.00021369,2]
[364985788,1749383445269,-440.0,0.00021369,2]
[364985789,1749383445278,-440.0,0.00021369,2]
[364985790,1749383445288,-440.0,0.00021369,2]
[364985791,1749383445299,-711.05,0.00021369,2]
[364985792,1749383445309,-440.0,0.00021369,2]
[364985793,1749383445319,-440.0,0.00021369,2]
[364985794,1749383445328,-440.0,0.00021369,2]
[364985795,1749383445338,-501.39,0.00021369,2]
[364985796,1749383445347,-440.0,0.00021369,2]
[364985797,1749383445357,-440.0,0.00021369,2]
[364985798,1749383445367,-519.6,0.00021369,2]
[364985799,1749383445377,-440.0,0.00021369,2]
[364985800,1749383445386,-638.78,0.00021369,2]
[364985801,1749383445395,-564.51,0.00021369,2]
[364985802,1749383445405,-189.40197304,0.00021391,2]
[364985803,1749383445415,-227.06789517,0.00021488,2]
[364985804,1749383445425,-587.0,0.00021555,2]
[364985805,1749383445435,-440.0,0.00021643,2]
[364985806,1749383445444,-165.42,0.00021643,2]
[364985807,1749383445455,-440.0,0.00021643,2]
[364985808,1749383445464,-440.0,0.00021643,2]
[364985809,1749383445474,-440.0,0.00021643,2]
[364985810,1749383445483,-440.0,0.00021643,2]
[364985811,1749383445493,-711.05,0.00021643,2]
[364985812,1749383445504,-440.0,0.00021643,2]
[364985813,1749383445514,-484.62,0.00021643,2]
[364985814,1749383445523,-440.0,0.00021643,2]
[364985815,1749383445532,-501.39,0.00021643,2]
[364985816,1749383445541,-440.0,0.00021643,2]
[364985817,1749383445551,-200.4,0.00021643,2]
[364985818,1749383445560,-519.6,0.00021643,2]
[364985819,1749383445570,-440.0,0.00021643,2]
[364985820,1749383445579,-638.78,0.00021643,2]
[364985821,1749383445589,-564.51,0.00021643,2]
[364985822,1749383445598,-155.4138332,0.00021836,2]
[364985823,1749383445607,-721.0370023,0.00021841,2]
[364985824,1749383445616,-500.0,0.00021906,2]
[364985825,1749383445625,-500.0,0.00021906,2]
[364985826,1749383445635,-500.0,0.00021906,2]
[364985827,1749383445644,-500.0,0.00021906,2]
[364985828,1749383445653,-500.0,0.00021906,2]
[364985829,1749383445662,-500.0,0.00021906,2]
[364985830,1749383445672,-500.0,0.00021906,2]
[364985831,1749383445681,-500.0,0.00021906,2]
[364985832,1749383445690,-500.0,0.00021906,2]
[364985833,1749383445699,-500.0,0.00021906,2]
[364985834,1749383445708,-469.09706891,0.00021906,2]
[364985835,1749383445718,-440.0,0.00021917,2]
[364985836,1749383445728,-576.37,0.00021917,2]
[364985837,1749383445737,-440.0,0.00021917,2]
[364985838,1749383445746,-440.0,0.00021917,2]
[364985839,1749383445759,-440.0,0.00021917,2]
[364985840,1749383445768,-711.05,0.00021917,2]
[364985841,1749383445778,-471.16,0.00021917,2]
[364985842,1749383445793,-500.0,0.00021917,2]
[364985843,1749383445803,-440.0,0.00021917,2]
[364985844,1749383445812,-501.39,0.00021917,2]
[364985845,1749383445821,-440.0,0.00021917,2]
[364985846,1749383445831,-519.6,0.00021917,2]
[364985847,1749383445841,-440.0,0.00021917,2]
[364985848,1749383445851,-638.78,0.00021917,2]
[364985849,1749383445860,-564.51,0.00021917,2]
[364985850,1749383445869,-153.0,0.00021918,2]
[364985852,1749383445879,-153.0,0.00021918,2]
[364985853,1749383445887,-153.0,0.00021918,2]
[364985854,1749383445897,-153.0,0.00021918,2]
[364985855,1749383445906,-153.0,0.00021918,2]
[364985856,1749383445915,-153.0,0.00021918,2]
[364985857,1749383445925,-153.0,0.00021918,2]
[364985858,1749383445934,-153.0,0.00021918,2]
[364985859,1749383445944,-153.0,0.00021918,2]
[364985860,1749383445953,-153.0,0.00021918,2]
[364985861,1749383445963,-153.0,0.00021918,2]
[364985862,1749383445972,-153.0,0.00021918,2]
[364985863,1749383445982,-153.0,0.00021918,2]
[364985865,1749383445992,-153.0,0.00021918,2]
[364985866,1749383446001,-153.0,0.00021918,2]
[364985867,1749383446011,-153.0,0.00021918,2]
[364985869,1749383446020,-153.0,0.00021918,2]
[364985870,1749383446029,-153.0,0.00021918,2]
[364985871,1749383446038,-153.0,0.00021918,2]
[364985873,1749383446048,-153.0,0.00021918,2]
[364985874,1749383446057,-153.0,0.00021918,2]
[364985875,1749383446066,-153.0,0.00021918,2]
[364985876,1749383446076,-153.0,0.00021918,2]
[364985877,1749383446085,-153.0,0.00021918,2]
[364985878,1749383446095,-153.0,0.00021918,2]
[364985879,1749383446103,-153.0,0.00021918,2]
[364985880,1749383446113,-153.0,0.00021918,2]
[364985881,1749383446123,-153.0,0.00021918,2]
[364985882,1749383446132,-153.0,0.00021918,2]
[364985884,1749383446142,-153.0,0.00021918,2]
[364985885,1749383446151,-153.0,0.00021918,2]
[364985887,1749383446161,-153.0,0.00021918,2]
[364985889,1749383446171,-153.0,0.00021918,2]
[364985890,1749383446180,-153.0,0.00021918,2]
[364985891,1749383446190,-153.0,0.00021918,2]
[364985892,1749383446199,-153.0,0.00021918,2]
[364985893,1749383446209,-153.0,0.00021918,2]
[364985894,1749383446219,-153.0,0.00021918,2]
[364985895,1749383446228,-153.0,0.00021918,2]
[364985896,1749383446239,-153.0,0.00021918,2]
[364985897,1749383446249,-153.0,0.00021918,2]
[364985898,1749383446259,-153.0,0.00021918,2]
[364985899,1749383446269,-153.0,0.00021918,2]
[364985900,1749383446278,-153.0,0.00021918,2]
[364985901,1749383446288,-153.0,0.00021918,2]
[364985902,1749383446298,-153.0,0.00021918,2]
[364985903,1749383446308,-153.0,0.00021918,2]
[364985904,1749383446318,-153.0,0.00021918,2]
[364985905,1749383446327,-153.0,0.00021918,2]
[364985906,1749383446337,-153.0,0.00021918,2]
[364985907,1749383446347,-153.0,0.00021918,2]
[364985908,1749383446356,-153.0,0.00021918,2]
[364985909,1749383446366,-153.0,0.00021918,2]
[364985910,1749383446376,-153.0,0.00021918,2]
[364985911,1749383446385,-153.0,0.00021918,2]
[364985912,1749383446395,-153.0,0.00021918,2]
[364985913,1749383446405,-153.0,0.00021918,2]
[364985914,1749383446415,-153.0,0.00021918,2]
[364985915,1749383446424,-153.0,0.00021918,2]
[364985916,1749383446434,-153.0,0.00021918,2]
[364985917,1749383446444,-153.0,0.00021918,2]
[364985918,1749383446454,-153.0,0.00021918,2]
[364985920,1749383446464,-153.0,0.00021918,2]
[364985922,1749383446474,-153.0,0.00021918,2]
[364985923,1749383446483,-153.0,0.00021918,2]
[364985925,1749383446494,-153.0,0.00021918,2]
[364985926,1749383446504,-153.0,0.00021918,2]
[364985927,1749383446513,-153.0,0.00021918,2]
[364985928,1749383446523,-153.0,0.00021918,2]
[364985929,1749383446533,-153.0,0.00021918,2]
[364985930,1749383446543,-153.0,0.00021918,2]
[364985931,1749383446552,-153.0,0.00021918,2]
[364985932,1749383446563,-153.0,0.00021918,2]
[364985933,1749383446572,-153.0,0.00021918,2]
[364985934,1749383446582,-153.0,0.00021918,2]
[364985935,1749383446591,-153.0,0.00021918,2]
[364985936,1749383446602,-153.0,0.00021918,2]
[364985937,1749383446611,-153.0,0.00021918,2]
[364985938,1749383446620,-153.0,0.00021918,2]
[364985939,1749383446630,-153.0,0.00021918,2]
[364985940,1749383446640,-153.0,0.00021918,2]
[364985941,1749383446650,-153.0,0.00021918,2]
[364985942,1749383446660,-153.0,0.00021918,2]
[364985943,1749383446670,-153.0,0.00021918,2]
[364985944,1749383446679,-153.0,0.00021918,2]
[364985945,1749383446689,-153.0,0.00021918,2]
[364985946,1749383446699,-153.0,0.00021918,2]
[364985947,1749383446709,-153.0,0.00021918,2]
[364985948,1749383446718,-153.0,0.00021918,2]
[364985949,1749383446729,-153.0,0.00021918,2]
[364985950,1749383446739,-153.0,0.00021918,2]
[364985951,1749383446748,-153.0,0.00021918,2]
[364985952,1749383446761,-153.0,0.00021918,2]
[364985953,1749383446770,-153.0,0.00021918,2]
[364985954,1749383446780,-153.0,0.00021918,2]
[364985955,1749383446789,-153.0,0.00021918,2]
[364985956,1749383446799,-153.0,0.00021918,2]
[364985957,1749383446808,-153.0,0.00021918,2]
[364985958,1749383446817,-153.0,0.00021918,2]
[364985959,1749383446827,-153.0,0.00021918,2]
[364985960,1749383446838,-153.0,0.00021918,2]
[364985961,1749383446847,-153.0,0.00021918,2]
[364985962,1749383446856,-153.0,0.00021918,2]
[364985963,1749383446864,-153.0,0.00021918,2]
[364985964,1749383446874,-153.0,0.00021918,2]
[364985965,1749383446883,-153.0,0.00021918,2]
[364985966,1749383446892,-153.0,0.00021918,2]
[364985967,1749383446902,-153.0,0.00021918,2]
[364985968,1749383446911,-153.0,0.00021918,2]
[364985969,1749383446919,-153.0,0.00021918,2]
[364985970,1749383446928,-153.0,0.00021918,2]
[364985971,1749383446937,-153.0,0.00021918,2]
[364985972,1749383446946,-153.0,0.00021918,2]
[364985973,1749383446956,-153.0,0.00021918,2]
[364985974,1749383446965,-153.0,0.00021918,2]
[364985975,1749383446974,-153.0,0.00021918,2]
[364985976,1749383446983,-153.0,0.00021918,2]
[364985977,1749383446992,-153.0,0.00021918,2]
[364985978,1749383447002,-153.0,0.00021918,2]
[364985979,1749383447011,-153.0,0.00021918,2]
[364985980,1749383447020,-153.0,0.00021918,2]
[364985981,1749383447030,-153.0,0.00021918,2]
[364985982,1749383447131,-153.0,0.00021918,2]
[364985983,1749383447141,-153.0,0.00021918,2]
[364985984,1749383447152,-153.0,0.00021918,2]
[364985985,1749383447162,-153.0,0.00021918,2]
[364985986,1749383447172,-153.0,0.00021918,2]
[364985987,1749383447182,-153.0,0.00021918,2]
[364985988,1749383447191,-153.0,0.00021918,2]
[364985989,1749383447201,-153.0,0.00021918,2]
[364985990,1749383447211,-153.0,0.00021918,2]
[364985991,1749383447221,-153.0,0.00021918,2]
[364985992,1749383447230,-176.7524085,0.00021918,2]
[364985993,1749383447240,-573.126752,0.00021918,2]
[364985994,1749383447250,-176.7524085,0.00021918,2]
[364985995,1749383447259,-153.0,0.00021918,2]
[364985996,1749383447268,-573.126752,0.00021918,2]
[364985997,1749383447279,-573.126752,0.00021918,2]
[364985998,1749383447289,-322.2086104,0.00021918,2]
[364985999,1749383447300,-153.0,0.00021918,2]
[364986000,1749383447310,-573.126752,0.00021918,2]
[364986001,1749383447321,-501.34608433,0.00021975,2]
[364986002,1749383447330,-1200.0,0.00021978,2]
[364986003,1749383447341,-153.0,0.00021978,2]
[364986004,1749383447351,-158.6873432,0.00021978,2]
[364986005,1749383447361,-573.126752,0.00021978,2]
[364986006,1749383447371,-153.0,0.00021978,2]
[364986007,1749383447380,-500.0,0.00021994,2]
[364986008,1749383447391,-188.0,0.00022,5]
[364986009,1749383447400,-188.0,0.00022,4]
[364986010,1749383447410,-171.0,0.00022,2]
[364986011,1749383447419,-155.0,0.00022,2]
[364986012,1749383447429,-189.40197304,0.00022163,2]
[364986013,1749383447438,-440.0,0.00022191,4]
[364986014,1749383447449,-389.99,0.00022191,4]
[364986015,1749383447459,-270.41,0.00022191,4]
[364986016,1749383447469,-440.0,0.00022191,4]
[364986017,1749383447479,-711.05,0.00022191,4]
[364986018,1749383447490,-440.0,0.00022191,4]
[364986019,1749383447501,-501.39,0.00022191,4]
[364986020,1749383447511,-440.0,0.00022191,4]
[364986021,1749383447521,-519.6,0.00022191,4]
[364986022,1749383447531,-440.0,0.00022191,4]
[364986023,1749383447541,-638.78,0.00022191,4]
[364986024,1749383447551,-564.51,0.00022191,4]
[364986025,1749383447561,-647.13957497,0.00022195,4]
[364986026,1749383447571,-227.06789517,0.000222,2]
[364986027,1749383447581,-472.93256888,0.000222,69]
[364986028,1749383447591,-472.93256885,0.000222,69]
[364986029,1749383447602,-472.93256885,0.000222,69]
[364986030,1749383447613,-500.0,0.00022273,2]
[364986031,1749383447624,-502.16556292,0.00022273,2]
[364986032,1749383447634,-501.34823422,0.00022273,2]
[364986033,1749383447644,-501.83712656,0.00022273,2]
[364986034,1749383447655,-479.68947817,0.00022273,2]
[364986035,1749383447665,-500.0,0.00022273,2]
[364986036,1749383447676,-500.0,0.00022273,2]